fUSD/lending_fUSD_20250906
["ID","MTS","AMOUNT","RATE_DAILY","PERIOD"]
[383846657,1757142639775,-150.0,0.00046301,2]
[383846659,1757142639784,-561.0,0.00046369,7]
[383846661,1757142639793,-500.0,0.00046575,2]
[383846663,1757142639802,-500.0,0.00046575,2]
[383846665,1757142639812,-500.0,0.00046575,2]
[383846667,1757142639822,-500.0,0.00046575,2]
[383846669,1757142639832,-150.0,0.00046575,2]
[383846671,1757142639842,-150.0,0.00046575,2]
[383846673,1757142639851,-500.0,0.00046589,30]
[383846675,1757142639861,-1200.0,0.000466,2]
[383846677,1757142639871,-563.08911572,0.000466,2]
[383846679,1757142639881,-5800.0,0.00046729,14]
[383846681,1757142639891,-10997.36,0.00046737,30]
[383846682,1757142639900,-1580.21,0.00046737,2]
[383846684,1757142639910,-19999.99,0.00046737,2]
[383846685,1757142639919,-5800.0,0.00046737,14]
[383846687,1757142639927,-500.0,0.00046792,30]
[383846689,1757142639936,-262.0,0.00046849,2]
[383846691,1757142639946,-500.0,0.00046849,2]
[383846692,1757142639955,-500.0,0.00046849,2]
[383846694,1757142639965,-500.0,0.00046849,2]
[383846696,1757142639974,-150.0,0.00046849,2]
[383846697,1757142639984,-150.0,0.00046849,2]
[383846699,1757142639993,-500.0,0.00046957,30]
[383846701,1757142640003,-6716.82454456,0.00047,117]
[383846702,1757142640012,-520.0,0.00047123,2]
[383846704,1757142640022,-500.0,0.00047123,2]
[383846706,1757142640032,-500.0,0.00047123,2]
[383846707,1757142640041,-150.0,0.00047123,2]
[383846709,1757142640051,-150.0,0.00047123,2]
[383846711,1757142640060,-561.0,0.00047155,2]
[383846713,1757142640070,-1054.49050296,0.00047199,60]
[383846714,1757142640079,-3000.0,0.000472,120]
[383846716,1757142640089,-500.0,0.00047397,2]
[383846718,1757142640101,-182.0,0.00047397,2]
[383846720,1757142640111,-258.0,0.00047397,2]
[383846722,1757142640121,-150.0,0.00047397,2]
[383846723,1757142640131,-180.83468267,0.00047404,28]
[383846725,1757142640141,-437.40627463,0.0004745,15]
[383846727,1757142640151,-561.0,0.00047514,2]
[383846729,1757142640161,-2027.20620494,0.00047542,14]
[383846730,1757142640170,-1572.95,0.00047542,2]
[383846732,1757142640180,-1155.31,0.00047542,2]
[383846734,1757142640190,-1723.11,0.00047542,2]
[383846735,1757142640199,-9999.99,0.00047542,2]
[383846737,1757142640209,-9999.99,0.00047542,2]
[383846739,1757142640219,-1436.63,0.00047542,2]
[383846741,1757142640228,-2470.25,0.00047542,2]
[383846743,1757142640238,-340.98,0.00047542,2]
[383846744,1757142640247,-2290.35,0.00047542,2]
[383846746,1757142640257,-150.99,0.00047542,2]
[383846748,1757142640270,-499.99,0.00047542,2]
[383846750,1757142640280,-1854.86,0.00047542,2]
[383846752,1757142640290,-40144.78,0.00047542,30]
[383846754,1757142640299,-151.29,0.00047542,120]
[383846755,1757142640309,-9999.99,0.00047542,2]
[383846757,1757142640318,-999.99,0.00047542,2]
[383846759,1757142640328,-303.58,0.00047542,2]
[383846761,1757142640338,-9259.98,0.00047542,2]
[383846763,1757142640347,-37564.02,0.00047542,2]
[383846765,1757142640356,-500.0,0.00047665,30]
[383846766,1757142640365,-502.83606105,0.00047671,2]
[383846768,1757142640374,-180.53264573,0.00047671,2]
[383846770,1757142640384,-500.0,0.00047684,30]
[383846772,1757142640393,-290.58595348,0.00047688,7]
[383846774,1757142640402,-161.64070028,0.00047688,7]
[383846775,1757142640411,-254.42044926,0.00047688,7]
[383846777,1757142640420,-5000.0,0.0004789,120]
[383846779,1757142640429,-151.0,0.00047897,120]
[383846781,1757142640439,-34547.0,0.000479,120]
[383846782,1757142640448,-6225.42738914,0.0004798,4]
[383846784,1757142640457,-130733.975172,0.0004799,4]
[383846786,1757142640471,-7614.91781581,0.00047997,120]
[383846788,1757142640481,-600000.0,0.00048,120]
[383846790,1757142640491,-898.77,0.00048,14]
[383846792,1757142640500,-379.50078628,0.00048,120]
[383846793,1757142640509,-500.0,0.00048489,30]
[383846795,1757142640518,-500.0,0.00048633,30]
[383846797,1757142640527,-90656.8215916,0.00048645,2]
[383846798,1757142640536,-500.0,0.00048795,2]
[383846800,1757142640546,-30353.8839806,0.000488,120]
[383846802,1757142640556,-15745.09502048,0.000488,120]
[383846804,1757142640566,-19952.09034975,0.000488,120]
[383846806,1757142640575,-183.15,0.00048927,120]
[383846808,1757142640584,-206.94493448,0.0004897,120]
[383846809,1757142640593,-238992.7122986,0.00049013,2]
[383846811,1757142640603,-223.39100036,0.00049067,120]
[383846813,1757142640612,-5077.0,0.0004907,120]
[383846815,1757142640621,-500.0,0.00049073,10]
[383846817,1757142640631,-500.0,0.00049073,10]
[383846818,1757142640641,-240.5570091,0.0004917,30]
[383846820,1757142640650,-204.55335165,0.0004917,120]
[383846822,1757142640660,-437.40627463,0.00049261,15]
[383846824,1757142640670,-249.53,0.00049354,14]
[383846826,1757142640679,-151.0,0.000494,120]
[383846827,1757142640689,-199.0,0.00049499,7]
[383846829,1757142640699,-3289.0,0.000495,120]
[383846831,1757142640708,-4000.0,0.00049521,8]
[383846833,1757142640718,-500.0,0.00049677,30]
[383846835,1757142640727,-173.0,0.00049779,60]
[383846837,1757142640737,-898.77,0.000498,60]
[383846838,1757142640746,-500.0,0.00049816,30]
[383846840,1757142640755,-500.0,0.00049892,30]
[383846842,1757142640765,-782.70866551,0.00049899,7]
[383846844,1757142640774,-200.0,0.00049999,120]
[383846846,1757142640784,-156.587,0.00049999,120]
[383846847,1757142640793,-250.0,0.00049999,120]
[383846849,1757142640803,-151.0,0.00049999,120]
[383846851,1757142640812,-151.0,0.00049999,120]
[383846853,1757142640821,-520.0,0.00049999,120]
[383846855,1757142640830,-250.0,0.00049999,120]
[383846856,1757142640840,-151.0,0.00049999,120]
[383846858,1757142640849,-549.79551537,0.00049999,120]
[383846860,1757142640858,-250.0,0.00049999,120]
[383846862,1757142640869,-151.0,0.00049999,120]
[383846864,1757142640878,-151.0,0.00049999,120]
[383846866,1757142640887,-250.0,0.00049999,120]
[383846867,1757142640896,-250.0,0.00049999,120]
[383846869,1757142640906,-151.0,0.00049999,120]
[383846871,1757142640915,-250.0,0.00049999,120]
[383846873,1757142640924,-151.0,0.00049999,120]
[383846875,1757142640934,-151.0,0.00049999,120]
[383846876,1757142640944,-151.50990684,0.00049999,120]
[383846878,1757142640953,-500.0,0.00049999,120]
[383846880,1757142640962,-500.0,0.00049999,120]
[383846882,1757142640972,-500.0,0.00049999,120]
[383846884,1757142640982,-500.0,0.00049999,120]
[383846886,1757142640991,-500.0,0.00049999,120]
[383846888,1757142641000,-250.0,0.00049999,120]
[383846890,1757142641010,-500.0,0.00049999,120]
[383846892,1757142641019,-250.0,0.00049999,120]
[383846894,1757142641029,-500.0,0.00049999,120]
[383846896,1757142641037,-500.0,0.00049999,120]
[383846897,1757142641047,-500.0,0.00049999,120]
[383846899,1757142641056,-250.0,0.00049999,120]
[383846900,1757142641066,-500.0,0.00049999,120]
[383846901,1757142641076,-500.0,0.00049999,120]
[383846902,1757142641085,-250.0,0.00049999,120]
[383846903,1757142641094,-151.0,0.00049999,120]
[383846904,1757142641104,-500.0,0.00049999,120]
[383846905,1757142641113,-500.0,0.00049999,120]
[383846906,1757142641123,-380.30727402,0.00049999,120]
[383846907,1757142641132,-500.0,0.00049999,120]
[383846908,1757142641141,-500.0,0.00049999,120]
[383846909,1757142641154,-156.587,0.00049999,120]
[383846910,1757142641163,-500.0,0.00049999,120]
[383846911,1757142641173,-500.0,0.00049999,120]
[383846912,1757142641183,-162.380719,0.00049999,120]
[383846913,1757142641193,-500.0,0.00049999,120]
[383846914,1757142641203,-168.3888056,0.00049999,120]
[383846915,1757142641212,-322.52669668,0.00049999,120]
[383846916,1757142641222,-174.61919141,0.00049999,120]
[383846918,1757142641231,-500.0,0.00049999,31]
[383846920,1757142641241,-500.0,0.00049999,120]
[383846922,1757142641250,-208.52157982,0.00049999,120]
[383846924,1757142641259,-500.0,0.00049999,31]
[383846926,1757142641269,-641.63855204,0.00049999,31]
[383846928,1757142641278,-200.0,0.00049999,120]
[383846930,1757142641290,-250.0,0.00049999,120]
[383846932,1757142641299,-250.0,0.00049999,120]
[383846934,1757142641309,-250.0,0.00049999,120]
[383846936,1757142641319,-250.0,0.00049999,120]
[383846938,1757142641329,-250.0,0.00049999,120]
[383846940,1757142641338,-250.0,0.00049999,120]
[383846942,1757142641348,-250.0,0.00049999,120]
[383846944,1757142641357,-151.0,0.00049999,120]
[383846946,1757142641367,-250.0,0.00049999,120]
[383846948,1757142641377,-250.0,0.00049999,120]
[383846950,1757142641386,-151.82786432,0.00049999,120]
[383846952,1757142641396,-250.0,0.00049999,120]
[383846954,1757142641405,-250.0,0.00049999,120]
[383846956,1757142641415,-250.0,0.00049999,120]
[383846958,1757142641425,-151.0,0.00049999,120]
[383846960,1757142641434,-151.0,0.00049999,120]
[383846962,1757142641444,-151.0,0.00049999,120]
[383846964,1757142641454,-151.0,0.00049999,120]
[383846966,1757142641465,-151.0,0.00049999,120]
[383846968,1757142641476,-151.0,0.00049999,120]
[383846970,1757142641486,-151.0,0.00049999,120]
[383846972,1757142641496,-300.0,0.00049999,120]
[383846974,1757142641506,-160.0,0.00049999,120]
[383846976,1757142641515,-6888.0,0.00049999,120]
[383846977,1757142641524,-320.1565679,0.00049999,120]
[383846979,1757142641534,-160.0,0.00049999,120]
[383846982,1757142641544,-1915.98786885,0.00049999,120]
[383846983,1757142641554,-2500.0,0.00049999,120]
[383846985,1757142641563,-160.0,0.00049999,120]
[383846988,1757142641572,-2400.0,0.00049999,120]
[383846989,1757142641582,-160.0,0.00049999,120]
[383846991,1757142641592,-160.0,0.00049999,120]
[383846993,1757142641603,-160.0,0.00049999,120]
[383846995,1757142641614,-500.0,0.00049999,120]
[383846998,1757142641624,-200.0,0.00049999,120]
[383847000,1757142641634,-500.0,0.00049999,120]
[383847002,1757142641645,-207.4,0.00049999,120]
[383847004,1757142641655,-500.0,0.00049999,120]
[383847006,1757142641665,-215.0738,0.00049999,120]
[383847008,1757142641674,-500.0,0.00049999,120]
[383847010,1757142641684,-151.0,0.00049999,120]
[383847012,1757142641694,-223.0315306,0.00049999,120]
[383847014,1757142641703,-151.0,0.00049999,120]
[383847016,1757142641713,-500.0,0.00049999,120]
[383847018,1757142641722,-231.28369723,0.00049999,120]
[383847020,1757142641732,-151.8384098,0.00049999,120]
[383847022,1757142641742,-564.30141647,0.00049999,120]
[383847024,1757142641751,-239.84119403,0.00049999,120]
[383847026,1757142641760,-248.71531821,0.00049999,120]
[383847028,1757142641770,-257.91778498,0.00049999,120]
[383847030,1757142641779,-267.46074303,0.00049999,120]
[383847032,1757142641788,-600.0,0.00049999,120]
[383847034,1757142641798,-277.35679052,0.00049999,120]
[383847036,1757142641808,-500.0,0.00049999,120]
[383847038,1757142641818,-600.0,0.00049999,120]
[383847040,1757142641828,-287.61899177,0.00049999,120]
[383847042,1757142641837,-500.0,0.00049999,120]
[383847045,1757142641847,-500.0,0.00049999,120]
[383847047,1757142641856,-600.0,0.00049999,120]
[383847049,1757142641865,-298.26089446,0.00049999,120]
[383847051,1757142641874,-500.0,0.00049999,120]
[383847052,1757142641884,-600.0,0.00049999,120]
[383847055,1757142641894,-309.29654756,0.00049999,120]
[383847056,1757142641903,-500.0,0.00049999,120]
[383847058,1757142641916,-600.0,0.00049999,120]
[383847060,1757142641926,-500.0,0.00049999,120]
[383847063,1757142641935,-320.74051982,0.00049999,120]
[383847064,1757142641945,-500.0,0.00049999,120]
[383847088,1757142642154,-600.0,0.00049999,120]
[383847090,1757142642164,-332.60791905,0.00049999,120]
[383847092,1757142642174,-500.0,0.00049999,120]
[383847094,1757142642183,-600.0,0.00049999,120]
[383847096,1757142642192,-344.91441206,0.00049999,120]
[383847098,1757142642202,-500.0,0.00049999,120]
[383847100,1757142642211,-500.0,0.00049999,120]
[383847102,1757142642220,-357.6762453,0.00049999,120]
[383847104,1757142642229,-370.91026638,0.00049999,120]
[383847106,1757142642239,-384.63394623,0.00049999,120]
[383847108,1757142642249,-398.86540225,0.00049999,120]
[383847110,1757142642258,-500.0,0.00049999,120]
[383847112,1757142642267,-500.0,0.00049999,120]
[383847114,1757142642276,-250.0,0.00049999,120]
[383847116,1757142642286,-500.0,0.00049999,120]
[383847118,1757142642295,-151.0,0.00049999,120]
[383847120,1757142642304,-500.0,0.00049999,120]
[383847122,1757142642314,-151.0,0.00049999,120]
[383847124,1757142642324,-151.0,0.00049999,120]
[383847126,1757142642333,-500.0,0.00049999,120]
[383847128,1757142642342,-600.0,0.00049999,120]
[383847130,1757142642351,-151.0,0.00049999,120]
[383847132,1757142642361,-500.0,0.00049999,120]
[383847134,1757142642370,-151.0,0.00049999,120]
[383847136,1757142642379,-600.0,0.00049999,120]
[383847138,1757142642389,-151.0,0.00049999,120]
[383847140,1757142642398,-600.0,0.00049999,120]
[383847142,1757142642408,-151.0,0.00049999,120]
[383847144,1757142642418,-120824.08609134,0.0005,120]
[383847147,1757142642427,-17706.43697229,0.0005,120]
[383847149,1757142642437,-300.0,0.0005,120]
[383847151,1757142642446,-156.51993556,0.0005,120]
[383847153,1757142642456,-1000.0,0.0005,120]
[383847154,1757142642466,-1224.0,0.0005,30]
[383847156,1757142642477,-1224.0,0.0005,30]
[383847158,1757142642486,-1224.0,0.0005,30]
[383847161,1757142642496,-1224.0,0.0005,30]
[383847163,1757142642506,-1224.0,0.0005,30]
[383847164,1757142642516,-1333.15438411,0.0005,30]
[383847166,1757142642525,-152.0,0.0005,30]
[383847168,1757142642534,-166.0,0.0005,30]
[383847171,1757142642544,-152.0,0.0005,30]
[383847173,1757142642553,-166.0,0.0005,30]
[383847175,1757142642563,-152.0,0.0005,30]
[383847177,1757142642572,-166.0,0.0005,30]
[383847178,1757142642581,-152.0,0.0005,30]
[383847180,1757142642591,-155.0,0.0005,30]
[383847182,1757142642600,-152.0,0.0005,30]
[383847185,1757142642610,-152.0,0.0005,30]
[383847187,1757142642620,-157.7458438,0.0005,30]
[383847189,1757142642631,-152.0,0.0005,30]
[383847191,1757142642640,-166.27730878,0.0005,30]
[383847193,1757142642650,-152.0,0.0005,30]
[383847195,1757142642660,-152.0,0.0005,30]
[383847197,1757142642670,-152.0,0.0005,30]
[383847199,1757142642679,-154.0,0.0005,30]
[383847201,1757142642689,-154.0,0.0005,30]
[383847203,1757142642699,-154.0,0.0005,30]
[383847205,1757142642709,-154.0,0.0005,30]
[383847207,1757142642719,-154.0,0.0005,30]
[383847209,1757142642728,-1554.82043795,0.0005,120]
[383847211,1757142642738,-153.94285468,0.0005,30]
[383847213,1757142642747,-605.26256501,0.0005,120]
[383847215,1757142642756,-6150.144696,0.0005015,2]
[383847217,1757142642766,-199.0,0.00050184,9]
[383847219,1757142642776,-500.0,0.00050266,60]
[383847221,1757142642786,-164.32,0.00050462,120]
[383847223,1757142642796,-1500.0,0.00050642,120]
[383847225,1757142642806,-500.0,0.00050792,60]
[383847227,1757142642816,-898.77,0.000508,60]
[383847229,1757142642826,-199.0,0.00050869,11]
[383847231,1757142642837,-500.0,0.00050894,60]
[383847233,1757142642847,-159.43299474,0.000509,27]
[383847235,1757142642857,-1000.0,0.00050999,120]
[383847237,1757142642868,-254.000002,0.00050999,120]
[383847239,1757142642877,-500000.0,0.00051,120]
[383847241,1757142642887,-759.00157255,0.00051,120]
[383847243,1757142642896,-437.40627463,0.00051072,15]
[383847245,1757142642906,-150.0,0.00051125,120]
[383847247,1757142642916,-500.0,0.00051437,60]
[383847249,1757142642925,-199.0,0.00051554,13]
[383847251,1757142642934,-151.0,0.000516,120]
[383847253,1757142642944,-398.19447192,0.00051628,45]
[383847255,1757142642954,-500.0,0.00051706,60]
[383847257,1757142642963,-150.0,0.0005171,120]
[383847259,1757142642973,-161.26,0.000518,30]
[383847262,1757142642982,-180.83468267,0.00051903,28]
[383847264,1757142642992,-500000.0,0.00052,120]
[383847265,1757142643001,-5327.0,0.00052089,7]
[383847268,1757142643011,-391.34265813,0.000521,2]
[383847270,1757142643021,-1200.0,0.000521,2]
[383847272,1757142643030,-898.77,0.000521,60]
[383847274,1757142643039,-199.0,0.00052239,15]
[383847276,1757142643048,-161.67,0.00052761,2]
[383847278,1757142643058,-437.40627463,0.00052883,15]
[383847280,1757142643067,-199.0,0.00052924,17]
[383847282,1757142643076,-500000.0,0.00053,120]
[383847284,1757142643085,-151.0,0.000532,120]
[383847286,1757142643094,-335.57,0.00053597,120]
[383847288,1757142643104,-302.89409988,0.000539,2]
[383847290,1757142643114,-2343.19614772,0.000539,2]
[383847292,1757142643123,-2013.17577702,0.000539,30]
[383847294,1757142643132,-330.62172828,0.000539,2]
[383847296,1757142643141,-500000.0,0.00054,120]
[383847298,1757142643151,-2072.79,0.00054,14]
[383847300,1757142643160,-1973.05,0.00054,30]
[383847302,1757142643171,-948.75196569,0.00054,120]
[383847304,1757142643180,-161.26,0.000543,30]
[383847306,1757142643189,-898.77,0.000543,60]
[383847308,1757142643199,-500.0,0.00054349,60]
[383847310,1757142643208,-206.94493448,0.00054435,120]
[383847312,1757142643218,-3000.0,0.000545,120]
[383847314,1757142643227,-1801.05,0.000546,14]
[383847316,1757142643236,-437.40627463,0.00054694,15]
[383847318,1757142643245,-596.1,0.00054794,30]
[383847320,1757142643254,-500.0,0.00054794,120]
[383847322,1757142643264,-400.0,0.00054794,120]
[383847324,1757142643273,-402.00206482,0.00054794,120]
[383847326,1757142643282,-401.76111576,0.00054794,120]
[383847328,1757142643293,-400.0,0.00054794,120]
[383847330,1757142643303,-400.0,0.00054794,120]
[383847332,1757142643312,-402.65722631,0.00054794,120]
[383847334,1757142643322,-400.0,0.00054794,120]
[383847336,1757142643331,-411.76660259,0.00054794,120]
[383847338,1757142643340,-414.47325978,0.00054794,120]
[383847340,1757142643350,-400.0,0.00054794,120]
[383847342,1757142643360,-400.0,0.00054794,120]
[383847344,1757142643369,-400.82343667,0.00054794,120]
[383847346,1757142643379,-400.0,0.00054794,120]
[383847348,1757142643388,-400.0,0.00054794,120]
[383847350,1757142643397,-401.46553936,0.00054794,120]
[383847352,1757142643406,-400.0,0.00054794,120]
[383847354,1757142643416,-400.0,0.00054794,120]
[383847356,1757142643425,-400.0,0.00054794,120]
[383847358,1757142643435,-400.0,0.00054794,120]
[383847360,1757142643444,-403.05609603,0.00054794,120]
[383847362,1757142643454,-400.0,0.00054794,120]
[383847364,1757142643463,-402.06913911,0.00054794,120]
[383847366,1757142643475,-401.56046561,0.00054794,120]
[383847368,1757142643485,-409.94741161,0.00054794,120]
[383847370,1757142643495,-401.33778397,0.00054794,120]
[383847373,1757142643506,-400.0,0.00054794,120]
[383847374,1757142643515,-208.42730606,0.00054794,120]
[383847377,1757142643525,-400.0,0.00054794,2]
[383847379,1757142643535,-400.0,0.00054794,120]
[383847380,1757142643546,-400.0,0.00054794,120]
[383847382,1757142643555,-400.0,0.00054794,7]
[383847385,1757142643565,-400.0,0.00054794,120]
[383847387,1757142643575,-400.0,0.00054794,120]
[383847389,1757142643585,-425.99802961,0.00054794,120]
[383847391,1757142643595,-400.0,0.00054794,120]
[383847393,1757142643605,-404.85077501,0.00054794,120]
[383847395,1757142643614,-400.0,0.00054794,120]
[383847397,1757142643623,-400.0,0.00054794,120]
[383847398,1757142643633,-400.0,0.00054794,120]
[383847401,1757142643643,-400.0,0.00054794,120]
[383847402,1757142643653,-400.0,0.00054794,120]
[383847404,1757142643663,-400.0,0.00054794,120]
[383847407,1757142643673,-402.52317558,0.00054794,120]
[383847409,1757142643683,-400.0,0.00054794,120]
[383847410,1757142643692,-400.0,0.00054794,120]
[383847413,1757142643701,-400.0,0.00054794,120]
[383847415,1757142643711,-400.79688209,0.00054794,120]
[383847416,1757142643720,-400.0,0.00054794,120]
[383847418,1757142643730,-400.0,0.00054794,120]
[383847421,1757142643739,-400.0,0.00054794,120]
[383847422,1757142643749,-400.0,0.00054794,120]
[383847425,1757142643759,-400.0,0.00054794,120]
[383847427,1757142643768,-408.63605943,0.00054794,120]
[383847429,1757142643778,-500.0,0.00054794,120]
[383847431,1757142643788,-360.10802821,0.00054794,120]
[383847433,1757142643798,-400.0,0.00054794,120]
[383847435,1757142643807,-400.0,0.00054794,120]
[383847437,1757142643817,-400.0,0.00054794,120]
[383847438,1757142643827,-401.78023214,0.00054794,120]
[383847440,1757142643836,-400.0,0.00054794,120]
[383847443,1757142643845,-400.0,0.00054794,120]
[383847444,1757142643855,-400.0,0.00054794,120]
[383847447,1757142643865,-400.0,0.00054794,120]
[383847448,1757142643874,-401.12064936,0.00054794,120]
[383847450,1757142643884,-400.0,0.00054794,120]
[383847452,1757142643893,-400.0,0.00054794,120]
[383847453,1757142643903,-401.62218486,0.00054794,120]
[383847454,1757142643913,-403.19915438,0.00054794,120]
[383847455,1757142643923,-404.61871847,0.00054794,120]
[383847456,1757142643932,-400.0,0.00054794,120]
[383847457,1757142643941,-402.16243214,0.00054794,120]
[383847458,1757142643951,-400.0,0.00054794,120]
[383847459,1757142643960,-402.81163659,0.00054794,120]
[383847460,1757142643970,-400.0,0.00054794,120]
[383847461,1757142643979,-400.0,0.00054794,120]
[383847462,1757142643989,-402.43623711,0.00054794,120]
[383847463,1757142643998,-400.0,0.00054794,120]
[383847465,1757142644007,-400.0,0.00054794,120]
[383847467,1757142644017,-402.25992269,0.00054794,120]
[383847469,1757142644027,-400.0,0.00054794,120]
[383847471,1757142644036,-400.0,0.00054794,120]
[383847473,1757142644046,-400.0,0.00054794,120]
[383847475,1757142644056,-400.0,0.00054794,120]
[383847477,1757142644066,-400.0,0.00054794,120]
[383847479,1757142644076,-400.0,0.00054794,120]
[383847482,1757142644086,-400.0,0.00054794,120]
[383847484,1757142644095,-481.48037288,0.00054794,120]
[383847486,1757142644105,-405.30374896,0.00054794,120]
[383847487,1757142644114,-400.0,0.00054794,120]
[383847490,1757142644124,-400.0,0.00054794,120]
[383847492,1757142644133,-402.21758471,0.00054794,120]
[383847493,1757142644143,-400.0,0.00054794,120]
[383847496,1757142644153,-400.0,0.00054794,120]
[383847497,1757142644163,-400.0,0.00054794,120]
[383847500,1757142644173,-403.30458217,0.00054794,120]
[383847502,1757142644182,-400.0,0.00054794,120]
[383847504,1757142644191,-400.0,0.00054794,120]
[383847506,1757142644201,-500.0,0.00054794,120]
[383847508,1757142644210,-401.57274125,0.00054794,120]
[383847510,1757142644219,-500.0,0.00054794,120]
[383847512,1757142644228,-401.41163185,0.00054794,120]
[383847514,1757142644238,-500.0,0.00054794,120]
[383847516,1757142644247,-518.53342399,0.00054794,120]
[383847518,1757142644256,-401.43988901,0.00054794,120]
[383847520,1757142644265,-400.0,0.00054794,120]
[383847522,1757142644274,-400.0,0.00054794,120]
[383847524,1757142644283,-400.0,0.00054794,120]
[383847526,1757142644293,-400.0,0.00054794,120]
[383847528,1757142644302,-400.0,0.00054794,120]
[383847530,1757142644311,-500.0,0.00054794,120]
[383847532,1757142644320,-509.04118898,0.00054794,120]
[383847534,1757142644330,-405.42979582,0.00054794,120]
[383847536,1757142644339,-400.0,0.00054794,120]
[383847538,1757142644349,-403.09928626,0.00054794,120]
[383847540,1757142644358,-400.0,0.00054794,120]
[383847542,1757142644367,-400.0,0.00054794,120]
[383847544,1757142644377,-498.17531397,0.00054794,120]
[383847546,1757142644386,-402.51467028,0.00054794,120]
[383847548,1757142644395,-400.0,0.00054794,120]
[383847550,1757142644405,-400.0,0.00054794,120]
[383847552,1757142644414,-400.0,0.00054794,120]
[383847554,1757142644423,-400.0,0.00054794,120]
[383847556,1757142644434,-400.0,0.00054794,90]
[383847558,1757142644443,-401.87683793,0.00054794,120]
[383847560,1757142644452,-400.0,0.00054794,120]
[383847568,1757142644517,-400.0,0.00054794,120]
[383847570,1757142644526,-400.0,0.00054794,120]
[383847572,1757142644536,-479.73463839,0.00054794,120]
[383847574,1757142644545,-404.14531586,0.00054794,120]
[383847576,1757142644554,-400.0,0.00054794,120]
[383847578,1757142644564,-400.0,0.00054794,120]
[383847580,1757142644573,-400.0,0.00054794,120]
[383847582,1757142644582,-400.0,0.00054794,120]
[383847584,1757142644591,-400.0,0.00054794,120]
[383847586,1757142644601,-400.0,0.00054794,120]
[383847588,1757142644611,-400.0,0.00054794,120]
[383847590,1757142644620,-400.0,0.00054794,120]
[383847592,1757142644629,-400.0,0.00054794,120]
[383847594,1757142644639,-400.0,0.00054794,120]
[383847596,1757142644648,-400.0,0.00054794,120]
[383847598,1757142644657,-400.0,0.00054794,120]
[383847600,1757142644666,-400.0,0.00054794,120]
[383847602,1757142644675,-400.0,0.00054794,120]
[383847604,1757142644685,-400.0,0.00054794,120]
[383847606,1757142644694,-403.79058962,0.00054794,120]
[383847608,1757142644703,-400.0,0.00054794,120]
[383847610,1757142644713,-406.54615682,0.00054794,30]
[383847612,1757142644722,-400.0,0.00054794,120]
[383847614,1757142644731,-400.0,0.00054794,120]
[383847616,1757142644740,-400.0,0.00054794,120]
[383847618,1757142644750,-400.0,0.00054794,120]
[383847620,1757142644759,-400.0,0.00054794,120]
[383847622,1757142644768,-400.0,0.00054794,120]
[383847624,1757142644777,-400.0,0.00054794,120]
[383847626,1757142644786,-400.0,0.00054794,120]
[383847628,1757142644796,-400.0,0.00054794,120]
[383847630,1757142644805,-400.0,0.00054794,120]
[383847632,1757142644814,-400.0,0.00054794,120]